[Event "*** MasterClass Titled Tuesday Blitz"]
[Site "Chess.com"]
[Date "2017.08.01"]
[Round "5"]
[White "Fisher-Human"]
[Black "TigranLPetrosyan"]
[Result "0-1"]
[WhiteElo "2455"]
[BlackElo "2753"]
[TimeControl "180+2"]
[EndTime "14:04:24 PDT"]
[Termination "TigranLPetrosyan won by checkmate"]

1. e4 {[%clk 0:02:58.2]} 1... g6 {[%clk 0:03:00.6]} 2. d4 {[%clk 0:02:58.5]}
2... Bg7 {[%clk 0:03:01.9]} 3. Nc3 {[%clk 0:02:59.1]} 3... a6 {[%clk 0:03:03.3]}
4. f4 {[%clk 0:02:58.4]} 4... b5 {[%clk 0:03:04.1]} 5. Nf3 {[%clk 0:02:58.4]}
5... Bb7 {[%clk 0:03:05.6]} 6. Bd3 {[%clk 0:02:58.2]} 6... d6 {[%clk 0:03:06.5]}
7. Qe2 {[%clk 0:02:57.2]} 7... Nd7 {[%clk 0:03:08.1]} 8. e5 {[%clk 0:02:55]}
8... e6 {[%clk 0:03:07.3]} 9. a4 {[%clk 0:02:27.8]} 9... b4 {[%clk 0:03:07.1]}
10. Ne4 {[%clk 0:02:29.3]} 10... Nb6 {[%clk 0:03:06.9]} 11. a5 {[%clk
0:02:25.5]} 11... Nd5 {[%clk 0:03:07.8]} 12. O-O {[%clk 0:02:23.5]} 12... Nge7
{[%clk 0:03:03]} 13. c4 {[%clk 0:02:06.7]} 13... bxc3 {[%clk 0:03:04.9]} 14.
bxc3 {[%clk 0:02:08.3]} 14... Nf5 {[%clk 0:03:03.9]} 15. Kh1 {[%clk 0:01:49.5]}
15... O-O {[%clk 0:02:45.9]} 16. Bd2 {[%clk 0:01:45.5]} 16... h5 {[%clk
0:02:06.8]} 17. Rfb1 {[%clk 0:01:31.6]} 17... Bc6 {[%clk 0:01:33.5]} 18. Rg1
{[%clk 0:01:05.5]} 18... Nde7 {[%clk 0:00:57.5]} 19. g3 {[%clk 0:00:53.1]} 19...
Qd7 {[%clk 0:00:48.4]} 20. h3 {[%clk 0:00:51.7]} 20... Nh6 {[%clk 0:00:37.9]}
21. g4 {[%clk 0:00:51.7]} 21... hxg4 {[%clk 0:00:39.8]} 22. hxg4 {[%clk
0:00:52.3]} 22... Rfb8 {[%clk 0:00:39.8]} 23. Rg2 {[%clk 0:00:46.5]} 23... Rb2
{[%clk 0:00:40.2]} 24. Rag1 {[%clk 0:00:39.7]} 24... Nd5 {[%clk 0:00:41]} 25.
Qe1 {[%clk 0:00:37.3]} 25... Qe7 {[%clk 0:00:37]} 26. Rh2 {[%clk 0:00:36.1]}
26... Rab8 {[%clk 0:00:33.1]} 27. Qg3 {[%clk 0:00:33.2]} 27... Ra2 {[%clk
0:00:27.6]} 28. Rf1 {[%clk 0:00:27.1]} 28... Rbb2 {[%clk 0:00:28.1]} 29. c4
{[%clk 0:00:24.6]} 29... Rxd2 {[%clk 0:00:19.1]} 30. Rxd2 {[%clk 0:00:21.4]}
30... Rxd2 {[%clk 0:00:20.1]} 31. Nfxd2 {[%clk 0:00:22.7]} 31... Nb4 {[%clk
0:00:20.9]} 32. Bb1 {[%clk 0:00:21.5]} 32... d5 {[%clk 0:00:20.9]} 33. cxd5
{[%clk 0:00:20.9]} 33... Nxd5 {[%clk 0:00:21.7]} 34. Kg1 {[%clk 0:00:21.2]}
34... Qb4 {[%clk 0:00:22.3]} 35. Qd3 {[%clk 0:00:20.9]} 35... Nxg4 {[%clk
0:00:21.8]} 36. Rc1 {[%clk 0:00:15.7]} 36... Nxf4 {[%clk 0:00:18.5]} 37. Qc4
{[%clk 0:00:14.7]} 37... Qa3 {[%clk 0:00:19.3]} 38. Rc3 {[%clk 0:00:12.2]} 38...
Qe7 {[%clk 0:00:12.9]} 39. Qxc6 {[%clk 0:00:12.4]} 39... Qh4 {[%clk 0:00:14.5]}
40. Ng3 {[%clk 0:00:12.4]} 40... Qh2+ {[%clk 0:00:15]} 41. Kf1 {[%clk
0:00:13.4]} 41... Qf2# {[%clk 0:00:15.9]} 0-1

[Event "*** MasterClass Titled Tuesday Blitz"]
[Site "Chess.com"]
[Date "2017.08.01"]
[Round "5"]
[White "djogrodek1"]
[Black "MMSANCHEZ"]
[Result "0-1"]
[WhiteElo "2407"]
[BlackElo "2313"]
[TimeControl "180+2"]
[EndTime "14:04:26 PDT"]
[Termination "MMSANCHEZ won by checkmate"]

1. e4 {[%clk 0:03:01.9]} 1... e6 {[%clk 0:03:00.3]} 2. d4 {[%clk 0:03:02.7]}
2... d5 {[%clk 0:03:01.6]} 3. Nd2 {[%clk 0:03:04.2]} 3... a6 {[%clk 0:03:01.2]}
4. Ngf3 {[%clk 0:02:57.9]} 4... Nf6 {[%clk 0:03:02.3]} 5. e5 {[%clk 0:02:59.2]}
5... Nfd7 {[%clk 0:03:03.2]} 6. Bd3 {[%clk 0:02:57.8]} 6... c5 {[%clk
0:03:04.2]} 7. c3 {[%clk 0:02:58.8]} 7... Nc6 {[%clk 0:03:05.3]} 8. O-O {[%clk
0:02:57.5]} 8... g5 {[%clk 0:03:06]} 9. h3 {[%clk 0:02:55]} 9... h5 {[%clk
0:03:06.2]} 10. Re1 {[%clk 0:02:43.4]} 10... g4 {[%clk 0:03:06]} 11. hxg4 {[%clk
0:02:44.6]} 11... hxg4 {[%clk 0:03:06.9]} 12. Nh2 {[%clk 0:02:46.7]} 12... Qh4
{[%clk 0:03:07]} 13. Ndf1 {[%clk 0:02:48.2]} 13... cxd4 {[%clk 0:03:06.9]} 14.
cxd4 {[%clk 0:02:49.9]} 14... g3 {[%clk 0:02:37.2]} 15. fxg3 {[%clk 0:02:42.1]}
15... Qxd4+ {[%clk 0:02:37.6]} 16. Be3 {[%clk 0:02:40.4]} 16... Qxe5 {[%clk
0:02:26.6]} 17. Bf4 {[%clk 0:02:20.1]} 17... Qd4+ {[%clk 0:02:25.5]} 18. Be3
{[%clk 0:02:20.8]} 18... Qxb2 {[%clk 0:02:25.8]} 19. Rc1 {[%clk 0:02:19.9]}
19... Be7 {[%clk 0:02:16.1]} 20. Rc2 {[%clk 0:01:56.8]} 20... Qg7 {[%clk
0:02:11.3]} 21. Rf2 {[%clk 0:01:51]} 21... Nde5 {[%clk 0:02:09.4]} 22. Bf4
{[%clk 0:01:24.6]} 22... Nxd3 {[%clk 0:02:07.4]} 23. Qxd3 {[%clk 0:01:26.5]}
23... Bd7 {[%clk 0:02:07.2]} 24. Rb1 {[%clk 0:01:23.4]} 24... b5 {[%clk
0:01:35.1]} 25. Rc1 {[%clk 0:01:21.9]} 25... Nd4 {[%clk 0:01:32.7]} 26. Qe3
{[%clk 0:00:48.5]} 26... Nf5 {[%clk 0:01:21.8]} 27. Qb6 {[%clk 0:00:49.4]} 27...
O-O {[%clk 0:01:18.2]} 28. g4 {[%clk 0:00:42.7]} 28... Nh4 {[%clk 0:01:07]} 29.
Qb7 {[%clk 0:00:40.2]} 29... Rad8 {[%clk 0:00:58.4]} 30. Ng3 {[%clk 0:00:40.9]}
30... Ng6 {[%clk 0:00:57.8]} 31. Nh5 {[%clk 0:00:41.1]} 31... Qd4 {[%clk
0:00:58.7]} 32. Bh6 {[%clk 0:00:39.2]} 32... Ne5 {[%clk 0:00:37.3]} 33. Bg7
{[%clk 0:00:20.8]} 33... f6 {[%clk 0:00:20.7]} 34. Rf1 {[%clk 0:00:05.9]} 34...
Rf7 {[%clk 0:00:17.7]} 35. Qc7 {[%clk 0:00:04.9]} 35... Rc8 {[%clk 0:00:14.8]}
36. Qa5 {[%clk 0:00:05.3]} 36... Bc5 {[%clk 0:00:15.8]} 37. Nf3 {[%clk
0:00:05.2]} 37... Qxg4 {[%clk 0:00:13.8]} 38. Nxf6+ {[%clk 0:00:03.8]} 38...
Rxf6 {[%clk 0:00:15]} 39. Bxf6 {[%clk 0:00:05.7]} 39... Nxf3+ {[%clk 0:00:16.2]}
40. Kh1 {[%clk 0:00:07.6]} 40... Qh5+ {[%clk 0:00:17.3]} 41. Bh4 {[%clk
0:00:08.3]} 41... Qxh4# {[%clk 0:00:18.6]} 0-1

[Event "*** MasterClass Titled Tuesday Blitz"]
[Site "Chess.com"]
[Date "2017.08.01"]
[Round "5"]
[White "rubhani"]
[Black "jb2mix"]
[Result "1/2-1/2"]
[WhiteElo "2390"]
[BlackElo "2458"]
[TimeControl "180+2"]
[EndTime "14:04:28 PDT"]
[Termination "Game drawn by agreement"]

1. e4 {[%clk 0:03:00.7]} 1... e5 {[%clk 0:02:16.1]} 2. Nf3 {[%clk 0:03:01]} 2...
Nc6 {[%clk 0:02:16.4]} 3. Bb5 {[%clk 0:03:01.1]} 3... a6 {[%clk 0:02:17.5]} 4.
Ba4 {[%clk 0:03:02.1]} 4... Nf6 {[%clk 0:02:18.2]} 5. O-O {[%clk 0:03:03.2]}
5... b5 {[%clk 0:02:19.2]} 6. Bb3 {[%clk 0:03:03.7]} 6... Bb7 {[%clk 0:02:20.8]}
7. d3 {[%clk 0:03:03]} 7... Be7 {[%clk 0:02:21.4]} 8. a4 {[%clk 0:03:03.6]} 8...
O-O {[%clk 0:02:21.6]} 9. Nc3 {[%clk 0:03:04.4]} 9... b4 {[%clk 0:02:22.3]} 10.
Nd5 {[%clk 0:03:05.1]} 10... Na5 {[%clk 0:02:21.5]} 11. Nxf6+ {[%clk 0:02:48.3]}
11... Bxf6 {[%clk 0:02:22.1]} 12. Bd5 {[%clk 0:02:49]} 12... c6 {[%clk
0:02:18.8]} 13. Ba2 {[%clk 0:02:48.8]} 13... d5 {[%clk 0:02:19.2]} 14. Be3
{[%clk 0:02:22]} 14... Qd6 {[%clk 0:01:52.8]} 15. Qe2 {[%clk 0:01:50]} 15... h6
{[%clk 0:01:45.7]} 16. Rfd1 {[%clk 0:01:45.8]} 16... d4 {[%clk 0:01:27.9]} 17.
Bc1 {[%clk 0:01:42.7]} 17... Bc8 {[%clk 0:01:23.2]} 18. Rf1 {[%clk 0:01:33.7]}
18... Rb8 {[%clk 0:01:03.7]} 19. Nd2 {[%clk 0:01:32.7]} 19... Bg5 {[%clk
0:00:57.7]} 20. Nc4 {[%clk 0:01:32.5]} 20... Nxc4 {[%clk 0:00:56.2]} 21. Bxc4
{[%clk 0:01:33.9]} 21... Bxc1 {[%clk 0:00:56.5]} 22. Raxc1 {[%clk 0:01:35.1]}
22... a5 {[%clk 0:00:58]} 23. b3 {[%clk 0:01:33.3]} 23... Be6 {[%clk 0:00:58.3]}
24. Bxe6 {[%clk 0:01:28.4]} 24... fxe6 {[%clk 0:01:00.2]} 25. g3 {[%clk
0:01:28.5]} 25... Rf7 {[%clk 0:01:00.2]} 26. f3 {[%clk 0:01:09.4]} 26... Rbf8
{[%clk 0:01:00.3]} 27. Rf2 {[%clk 0:01:10.6]} 27... Qc5 {[%clk 0:01:00.9]} 28.
Rcf1 {[%clk 0:01:11.7]} 28... Qc3 {[%clk 0:01:01.5]} 29. Kh1 {[%clk 0:01:11.1]}
29... Rf6 {[%clk 0:01:01.4]} 30. f4 {[%clk 0:01:09]} 30... exf4 {[%clk
0:01:02.5]} 31. gxf4 {[%clk 0:01:09.5]} 31... Kh8 {[%clk 0:00:55.3]} 32. Qg4
{[%clk 0:01:09.2]} 32... Qc5 {[%clk 0:00:50.9]} 33. Rg1 {[%clk 0:01:06.3]} 33...
Qe7 {[%clk 0:00:48.5]} 34. Rg3 {[%clk 0:01:04]} 34... Qf7 {[%clk 0:00:41.2]} 35.
Rgf3 {[%clk 0:01:02.7]} 35... Kh7 {[%clk 0:00:41.7]} 36. f5 {[%clk 0:00:56.4]}
36... exf5 {[%clk 0:00:40.8]} 37. Rxf5 {[%clk 0:00:54.1]} 37... Qg6 {[%clk
0:00:38.5]} 38. Qxg6+ {[%clk 0:00:49]} 38... Kxg6 {[%clk 0:00:40.4]} 39. Rxf6+
{[%clk 0:00:50.3]} 39... Rxf6 {[%clk 0:00:41]} 40. Rxf6+ {[%clk 0:00:40.3]}
40... Kxf6 {[%clk 0:00:41.2]} 41. Kg2 {[%clk 0:00:41.5]} 41... g5 {[%clk
0:00:37.9]} 42. Kg3 {[%clk 0:00:39.8]} 42... h5 {[%clk 0:00:38.9]} 43. Kf3
{[%clk 0:00:38.2]} 43... Ke5 {[%clk 0:00:38.7]} 44. h3 {[%clk 0:00:39.2]} 44...
c5 {[%clk 0:00:38.5]} 45. Kg3 {[%clk 0:00:39.3]} 45... Kd6 {[%clk 0:00:36.3]}
46. Kf3 {[%clk 0:00:36]} 46... Ke6 {[%clk 0:00:35.4]} 47. Kg3 {[%clk 0:00:34.1]}
47... Ke5 {[%clk 0:00:36.3]} 48. Kf3 {[%clk 0:00:34.9]} 48... Ke6 {[%clk
0:00:34]} 49. Kg3 {[%clk 0:00:33.8]} 49... Kf6 {[%clk 0:00:33.2]} 50. Kf3 {[%clk
0:00:31.3]} 50... Ke5 {[%clk 0:00:34.4]} 51. Kg3 {[%clk 0:00:31.7]} 51... Ke6
{[%clk 0:00:27.3]} 1/2-1/2

[Event "*** MasterClass Titled Tuesday Blitz"]
[Site "Chess.com"]
[Date "2017.08.01"]
[Round "5"]
[White "ka1ser64"]
[Black "pedroholly22"]
[Result "1/2-1/2"]
[WhiteElo "2353"]
[BlackElo "2272"]
[TimeControl "180+2"]
[EndTime "14:04:35 PDT"]
[Termination "Game drawn by repetition"]

1. d4 {[%clk 0:02:38.8]} 1... c5 {[%clk 0:03:01.9]} 2. d5 {[%clk 0:02:39.9]}
2... d6 {[%clk 0:03:00.4]} 3. c4 {[%clk 0:02:41.4]} 3... g6 {[%clk 0:02:59.7]}
4. Nc3 {[%clk 0:02:42.9]} 4... Bg7 {[%clk 0:02:56.5]} 5. e4 {[%clk 0:02:44.5]}
5... Nf6 {[%clk 0:02:55.3]} 6. h3 {[%clk 0:02:44.2]} 6... a6 {[%clk 0:02:54.1]}
7. Nf3 {[%clk 0:02:45.2]} 7... e6 {[%clk 0:02:55]} 8. a4 {[%clk 0:02:42.1]} 8...
exd5 {[%clk 0:02:55.9]} 9. cxd5 {[%clk 0:02:43.2]} 9... O-O {[%clk 0:02:57.7]}
10. Be2 {[%clk 0:02:40.4]} 10... Re8 {[%clk 0:02:53.3]} 11. Nd2 {[%clk
0:02:36.9]} 11... Nbd7 {[%clk 0:02:51.4]} 12. O-O {[%clk 0:02:37]} 12... Rb8
{[%clk 0:02:50.3]} 13. a5 {[%clk 0:02:35.5]} 13... h5 {[%clk 0:02:30.4]} 14. f4
{[%clk 0:02:20.2]} 14... b5 {[%clk 0:02:16]} 15. axb6 {[%clk 0:02:20]} 15...
Rxb6 {[%clk 0:02:17.1]} 16. Nc4 {[%clk 0:02:19.9]} 16... Rb4 {[%clk 0:02:10]}
17. Nxd6 {[%clk 0:02:20.8]} 17... Rd4 {[%clk 0:01:56.6]} 18. Qc2 {[%clk
0:02:15.7]} 18... Re7 {[%clk 0:01:43.5]} 19. Be3 {[%clk 0:01:15.2]} 19... Ne8
{[%clk 0:01:32.8]} 20. Nxc8 {[%clk 0:00:59.9]} 20... Qxc8 {[%clk 0:01:30.3]} 21.
e5 {[%clk 0:01:00.4]} 21... Rb4 {[%clk 0:01:19.9]} 22. Bxa6 {[%clk 0:01:00.7]}
22... Qb8 {[%clk 0:01:17.1]} 23. Ra2 {[%clk 0:00:57.9]} 23... Nxe5 {[%clk
0:01:14.5]} 24. Bxc5 {[%clk 0:00:51.7]} 24... Rxf4 {[%clk 0:00:54]} 25. Rxf4
{[%clk 0:00:50.6]} 25... Ng4 {[%clk 0:00:54.5]} 26. Rxg4 {[%clk 0:00:25.4]}
26... hxg4 {[%clk 0:00:42.6]} 27. Bxe7 {[%clk 0:00:22.1]} 27... Bd4+ {[%clk
0:00:42.8]} 28. Kf1 {[%clk 0:00:20.2]} 28... Qf4+ {[%clk 0:00:43.5]} 29. Ke1
{[%clk 0:00:21.2]} 29... gxh3 {[%clk 0:00:42.4]} 30. gxh3 {[%clk 0:00:21.8]}
30... Qg3+ {[%clk 0:00:43.4]} 31. Kd1 {[%clk 0:00:22.5]} 31... Qg1+ {[%clk
0:00:43.7]} 32. Kd2 {[%clk 0:00:23.5]} 32... Qe3+ {[%clk 0:00:44.4]} 33. Kd1
{[%clk 0:00:24.7]} 33... Qg1+ {[%clk 0:00:45.3]} 34. Ke2 {[%clk 0:00:25.8]}
34... Qe3+ {[%clk 0:00:42.6]} 35. Kf1 {[%clk 0:00:25.9]} 35... Qg1+ {[%clk
0:00:40.4]} 36. Ke2 {[%clk 0:00:27.3]} 36... Qe3+ {[%clk 0:00:41.1]} 37. Kd1
{[%clk 0:00:28.7]} 37... Qg1+ {[%clk 0:00:41.6]} 38. Kd2 {[%clk 0:00:28.6]}
38... Qe3+ {[%clk 0:00:42.1]} 39. Kd1 {[%clk 0:00:30]} 39... Qg1+ {[%clk
0:00:42.6]} 40. Bf1 {[%clk 0:00:31]} 40... Qxf1+ {[%clk 0:00:43.3]} 41. Kd2
{[%clk 0:00:32.4]} 41... Qf4+ {[%clk 0:00:41.4]} 42. Ke1 {[%clk 0:00:29.4]}
42... Qg3+ {[%clk 0:00:40.6]} 43. Kd2 {[%clk 0:00:29.4]} 43... Qe3+ {[%clk
0:00:40.9]} 44. Kd1 {[%clk 0:00:30.5]} 44... Qg1+ {[%clk 0:00:40.5]} 45. Ke2
{[%clk 0:00:31.9]} 45... Qe3+ {[%clk 0:00:41.2]} 46. Kf1 {[%clk 0:00:33.1]}
46... Qg1+ {[%clk 0:00:42]} 47. Ke2 {[%clk 0:00:34.4]} 47... Qe3+ {[%clk
0:00:42.7]} 48. Kd1 {[%clk 0:00:35.8]} 48... Qg1+ {[%clk 0:00:43.2]} 49. Kd2
{[%clk 0:00:37.2]} 49... Qe3+ {[%clk 0:00:44]} 50. Kd1 {[%clk 0:00:38.4]} 50...
Qg1+ {[%clk 0:00:44.7]} 51. Ke2 {[%clk 0:00:39.5]} 51... Qe3+ {[%clk 0:00:15.2]}
52. Kd1 {[%clk 0:00:40.1]} 52... Qg1+ {[%clk 0:00:16.1]} 53. Kd2 {[%clk
0:00:41.6]} 53... Qe3+ {[%clk 0:00:16.9]} 54. Kd1 {[%clk 0:00:43.2]} 1/2-1/2

[Event "*** MasterClass Titled Tuesday Blitz"]
[Site "Chess.com"]
[Date "2017.08.01"]
[Round "5"]
[White "Ilja_Semjonovs"]
[Black "Muracle"]
[Result "1-0"]
[WhiteElo "2405"]
[BlackElo "2427"]
[TimeControl "180+2"]
[EndTime "14:04:39 PDT"]
[Termination "Ilja_Semjonovs won by resignation"]

1. e4 {[%clk 0:03:00.2]} 1... c5 {[%clk 0:03:00.1]} 2. Nf3 {[%clk 0:03:01]} 2...
Nc6 {[%clk 0:03:01]} 3. Nc3 {[%clk 0:03:00.7]} 3... e6 {[%clk 0:02:57.5]} 4. Bb5
{[%clk 0:02:59]} 4... a6 {[%clk 0:02:52.4]} 5. Bxc6 {[%clk 0:02:56.5]} 5... bxc6
{[%clk 0:02:52.6]} 6. d4 {[%clk 0:02:55.8]} 6... cxd4 {[%clk 0:02:51.3]} 7. Nxd4
{[%clk 0:02:56.7]} 7... g6 {[%clk 0:02:49.5]} 8. O-O {[%clk 0:02:56.3]} 8... Bg7
{[%clk 0:02:50.1]} 9. Be3 {[%clk 0:02:56.7]} 9... Ne7 {[%clk 0:02:49.1]} 10. Qd2
{[%clk 0:02:57.3]} 10... O-O {[%clk 0:02:47.6]} 11. Bh6 {[%clk 0:02:55.1]} 11...
d5 {[%clk 0:02:46]} 12. Bxg7 {[%clk 0:02:55.1]} 12... Kxg7 {[%clk 0:02:47.9]}
13. exd5 {[%clk 0:02:31.5]} 13... cxd5 {[%clk 0:02:46.5]} 14. h4 {[%clk
0:02:03.6]} 14... h5 {[%clk 0:02:39.4]} 15. Rfe1 {[%clk 0:02:00.6]} 15... Qd6
{[%clk 0:02:33.2]} 16. Nf3 {[%clk 0:01:57.1]} 16... Nf5 {[%clk 0:02:23.8]} 17.
Rad1 {[%clk 0:01:52.9]} 17... Bb7 {[%clk 0:02:19.1]} 18. Nd4 {[%clk 0:01:11]}
18... Nxh4 {[%clk 0:01:25.4]} 19. g3 {[%clk 0:01:09.4]} 19... Nf5 {[%clk
0:01:24.1]} 20. Ne4 {[%clk 0:00:58.2]} 20... Qe7 {[%clk 0:01:06.4]} 21. Nxf5+
{[%clk 0:00:56]} 21... exf5 {[%clk 0:01:03.3]} 22. Qd4+ {[%clk 0:00:55.3]} 22...
f6 {[%clk 0:00:58.7]} 23. Nc5 {[%clk 0:00:54]} 23... Qf7 {[%clk 0:00:56.6]} 24.
Ne6+ {[%clk 0:00:50.4]} 24... Kh7 {[%clk 0:00:57.3]} 25. Nxf8+ {[%clk
0:00:48.1]} 25... Rxf8 {[%clk 0:00:58.2]} 26. Re3 {[%clk 0:00:42.4]} 26... Qc7
{[%clk 0:00:50.8]} 27. Rde1 {[%clk 0:00:41.1]} 27... Rf7 {[%clk 0:00:51.8]} 28.
c3 {[%clk 0:00:32.9]} 28... Kg7 {[%clk 0:00:47]} 29. Re8 {[%clk 0:00:29.8]}
29... Bc6 {[%clk 0:00:38.8]} 30. R8e6 {[%clk 0:00:24.2]} 30... Bb7 {[%clk
0:00:36.1]} 31. Qb4 {[%clk 0:00:22.4]} 31... a5 {[%clk 0:00:32.3]} 32. Qd6
{[%clk 0:00:20.7]} 32... Qc4 {[%clk 0:00:19.6]} 33. Re7 {[%clk 0:00:19.6]} 33...
Rxe7 {[%clk 0:00:20.4]} 34. Qxe7+ {[%clk 0:00:19.5]} 34... Kh6 {[%clk
0:00:22.3]} 35. Qxb7 {[%clk 0:00:20.7]} 35... h4 {[%clk 0:00:22.3]} 36. Qb8
{[%clk 0:00:17.9]} 36... g5 {[%clk 0:00:19]} 37. Qd6 {[%clk 0:00:16.6]} 37...
Kh5 {[%clk 0:00:18.2]} 38. Qe6 {[%clk 0:00:07.3]} 38... Kg4 {[%clk 0:00:16.1]}
39. Qe2+ {[%clk 0:00:07]} 39... Qxe2 {[%clk 0:00:17.4]} 40. Rxe2 {[%clk
0:00:07.9]} 40... Kf3 {[%clk 0:00:19.3]} 41. Re3+ {[%clk 0:00:08.1]} 41... Kg4
{[%clk 0:00:20.6]} 42. gxh4 {[%clk 0:00:08.8]} 42... f4 {[%clk 0:00:22.1]} 43.
Rd3 {[%clk 0:00:09.7]} 43... Kxh4 {[%clk 0:00:24]} 44. Rxd5 {[%clk 0:00:10.3]}
44... g4 {[%clk 0:00:25.5]} 45. Rxa5 {[%clk 0:00:11.2]} 45... g3 {[%clk
0:00:26.9]} 46. fxg3+ {[%clk 0:00:11.4]} 46... Kxg3 {[%clk 0:00:28.8]} 47. Ra6
{[%clk 0:00:11.6]} 47... f5 {[%clk 0:00:29.2]} 48. Kf1 {[%clk 0:00:12.7]} 48...
Kf3 {[%clk 0:00:30.2]} 1-0

[Event "*** MasterClass Titled Tuesday Blitz"]
[Site "Chess.com"]
[Date "2017.08.01"]
[Round "5"]
[White "Tesla37"]
[Black "FMVolodymyrSakun"]
[Result "0-1"]
[WhiteElo "2663"]
[BlackElo "2535"]
[TimeControl "180+2"]
[EndTime "14:04:41 PDT"]
[Termination "FMVolodymyrSakun won by resignation"]

1. Nf3 {[%clk 0:03:01.9]} 1... Nf6 {[%clk 0:02:47.1]} 2. g3 {[%clk 0:03:02.9]}
2... g6 {[%clk 0:02:48.4]} 3. Bg2 {[%clk 0:03:04.4]} 3... Bg7 {[%clk 0:02:50]}
4. O-O {[%clk 0:03:06.1]} 4... O-O {[%clk 0:02:51]} 5. c4 {[%clk 0:03:07.7]}
5... d6 {[%clk 0:02:52.1]} 6. Nc3 {[%clk 0:03:08.8]} 6... Nbd7 {[%clk
0:02:52.8]} 7. d4 {[%clk 0:03:09.4]} 7... e5 {[%clk 0:02:52.4]} 8. h3 {[%clk
0:03:10.5]} 8... exd4 {[%clk 0:02:47.6]} 9. Nxd4 {[%clk 0:03:10.9]} 9... Ne5
{[%clk 0:02:45.6]} 10. b3 {[%clk 0:03:08.7]} 10... a6 {[%clk 0:02:42.5]} 11. Bb2
{[%clk 0:03:07.2]} 11... Re8 {[%clk 0:02:38.9]} 12. Qd2 {[%clk 0:03:07]} 12...
Rb8 {[%clk 0:02:35.8]} 13. a4 {[%clk 0:03:04.5]} 13... Bd7 {[%clk 0:02:20.4]}
14. a5 {[%clk 0:03:02]} 14... Qc8 {[%clk 0:02:15.4]} 15. Kh2 {[%clk 0:02:58.5]}
15... Nc6 {[%clk 0:02:11.4]} 16. Nc2 {[%clk 0:02:52.1]} 16... h5 {[%clk
0:02:05.2]} 17. Ne3 {[%clk 0:02:44.4]} 17... Ne7 {[%clk 0:01:55]} 18. Rad1
{[%clk 0:02:40.1]} 18... Bc6 {[%clk 0:01:51.5]} 19. Ncd5 {[%clk 0:02:39.8]}
19... Nexd5 {[%clk 0:01:48.1]} 20. cxd5 {[%clk 0:02:37]} 20... Bd7 {[%clk
0:01:49.2]} 21. Bd4 {[%clk 0:02:32.4]} 21... Qd8 {[%clk 0:01:47.4]} 22. Qb2
{[%clk 0:02:24.6]} 22... Qe7 {[%clk 0:01:40.9]} 23. Rc1 {[%clk 0:02:23.5]} 23...
Rec8 {[%clk 0:01:38.2]} 24. Rfd1 {[%clk 0:02:22.5]} 24... Ne8 {[%clk 0:01:35.4]}
25. Bxg7 {[%clk 0:02:21.2]} 25... Nxg7 {[%clk 0:01:36.5]} 26. Nc4 {[%clk
0:02:21.8]} 26... h4 {[%clk 0:01:34]} 27. g4 {[%clk 0:02:21.4]} 27... f5 {[%clk
0:01:34]} 28. gxf5 {[%clk 0:02:19.7]} 28... Nxf5 {[%clk 0:01:34]} 29. e4 {[%clk
0:02:19.9]} 29... Ng7 {[%clk 0:01:34.7]} 30. e5 {[%clk 0:02:18.4]} 30... dxe5
{[%clk 0:01:34.3]} 31. Nxe5 {[%clk 0:02:13.9]} 31... Qf6 {[%clk 0:01:32]} 32.
Rd2 {[%clk 0:02:03.4]} 32... Bb5 {[%clk 0:01:28.8]} 33. Kg1 {[%clk 0:01:52.5]}
33... Nh5 {[%clk 0:01:24.7]} 34. Bf3 {[%clk 0:01:40.9]} 34... Nf4 {[%clk
0:01:19.8]} 35. Bg4 {[%clk 0:01:41.6]} 35... Re8 {[%clk 0:01:17.8]} 36. Nc4
{[%clk 0:01:29.7]} 36... Qg5 {[%clk 0:01:14.9]} 37. Kh2 {[%clk 0:01:24.5]} 37...
Nxd5 {[%clk 0:01:04.5]} 38. Rg1 {[%clk 0:01:13.7]} 38... Qf4+ {[%clk 0:01:02.2]}
39. Kh1 {[%clk 0:01:14.7]} 39... Bc6 {[%clk 0:01:02]} 40. f3 {[%clk 0:01:12.8]}
40... Kh7 {[%clk 0:00:58]} 41. Rdg2 {[%clk 0:01:11.7]} 41... Nf6 {[%clk
0:00:51.3]} 42. Nd2 {[%clk 0:01:03.6]} 42... Rbd8 {[%clk 0:00:47.2]} 43. Qc2
{[%clk 0:00:57]} 43... Nxg4 {[%clk 0:00:44.6]} 44. Rxg4 {[%clk 0:00:57.1]} 44...
Bxf3+ {[%clk 0:00:43.9]} 45. Nxf3 {[%clk 0:00:58.1]} 45... Qxf3+ {[%clk
0:00:44.9]} 46. R1g2 {[%clk 0:00:59.2]} 46... Rd1+ {[%clk 0:00:40.8]} 47. Kh2
{[%clk 0:01:00]} 47... Rh1+ {[%clk 0:00:34.1]} 48. Kxh1 {[%clk 0:01:00.4]} 48...
Qxh3+ {[%clk 0:00:35.2]} 49. Rh2 {[%clk 0:00:57.8]} 49... Qxg4 {[%clk
0:00:30.3]} 50. Qxc7+ {[%clk 0:00:57.4]} 50... Kh6 {[%clk 0:00:27.8]} 51. Qc1+
{[%clk 0:00:57.5]} 51... g5 {[%clk 0:00:28.8]} 52. Rf2 {[%clk 0:00:45.1]} 52...
Qh3+ {[%clk 0:00:29.2]} 53. Kg1 {[%clk 0:00:45.3]} 53... Qg3+ {[%clk 0:00:30.2]}
54. Kf1 {[%clk 0:00:44.9]} 54... Qd3+ {[%clk 0:00:30.9]} 55. Kg1 {[%clk
0:00:45.2]} 55... Qe3 {[%clk 0:00:31.8]} 56. Qb2 {[%clk 0:00:42.4]} 56... Rf8
{[%clk 0:00:31.4]} 0-1